[Event "Titled Tuesday Blitz March 08 Late 2022"]
[White "Korchmar, Vasiliy"]
[Black "Risteski, Emil"]
[WhiteFideId "24131750"]
[BlackFideId "15005267"]
[WhiteElo "2370"]
[BlackElo "2070"]
[Result "0-1"]
[Round "09"]
[TimeControl "180+1"]
[Date "2022.03.08"]
[WhiteClock "0:00:02"]
[BlackClock "0:00:15"]

1. e4 {[%clk 0:02:58]}  d6 {[%clk 0:03:00]} 2. d4 {[%clk 0:02:57]}  Nf6 {[%clk 0:03:01]} 3. Nc3 {[%clk 0:02:56]}  e5 {[%clk 0:03:01]} 4. Nf3 {[%clk 0:02:56]}  Nbd7 {[%clk 0:03:01]} 5. Bc4 {[%clk 0:02:56]}  Be7 {[%clk 0:03:01]} 6. O-O {[%clk 0:02:56]}  O-O {[%clk 0:03:01]} 7. Re1 {[%clk 0:02:56]}  c6 {[%clk 0:03:01]} 8. a4 {[%clk 0:02:56]}  a5 {[%clk 0:03:01]} 9. h3 {[%clk 0:02:52]}  Nb6 {[%clk 0:03:01]} 10. Ba2 {[%clk 0:02:51]}  Nfd7 {[%clk 0:03:01]} 11. dxe5 {[%clk 0:02:49]}  dxe5 {[%clk 0:03:02]} 12. Qd3 {[%clk 0:02:48]}  Qc7 {[%clk 0:02:52]} 13. Nh2 {[%clk 0:02:40]}  Nc5 {[%clk 0:02:45]} 14. Qg3 {[%clk 0:02:40]}  Kh8 {[%clk 0:02:09]} 15. Nf3 {[%clk 0:02:36]}  f6 {[%clk 0:01:58]} 16. Nh4 {[%clk 0:02:36]}  Be6 {[%clk 0:01:56]} 17. Nf5 {[%clk 0:02:30]}  g6 {[%clk 0:01:45]} 18. Bh6 {[%clk 0:02:23]}  Rf7 {[%clk 0:01:35]} 19. Nxe7 {[%clk 0:02:18]}  Qxe7 {[%clk 0:01:33]} 20. Bxe6 {[%clk 0:02:06]}  Nxe6 {[%clk 0:01:31]} 21. Ne2 {[%clk 0:01:50]}  g5 {[%clk 0:01:24]} 22. h4 {[%clk 0:01:49]}  Rg8 {[%clk 0:01:22]} 23. hxg5 {[%clk 0:01:48]}  Rg6 {[%clk 0:00:59]} 24. Qh2 {[%clk 0:01:47]}  Nc4 {[%clk 0:00:38]} 25. b3 {[%clk 0:01:32]}  Nd6 {[%clk 0:00:36]} 26. Ng3 {[%clk 0:01:13]}  fxg5 {[%clk 0:00:36]} 27. Rad1 {[%clk 0:00:51]}  Qf6 {[%clk 0:00:28]} 28. Nf5 {[%clk 0:00:43]}  Nxf5 {[%clk 0:00:24]} 29. exf5 {[%clk 0:00:44]}  Rxh6 {[%clk 0:00:24]} 30. Qg3 {[%clk 0:00:38]}  Nf4 {[%clk 0:00:23]} 31. Qc3 {[%clk 0:00:25]}  Nd5 {[%clk 0:00:18]} 32. Qg3 {[%clk 0:00:18]}  Qxf5 {[%clk 0:00:15]} 33. Rxe5 {[%clk 0:00:19]}  Qf4 {[%clk 0:00:15]} 34. Qxf4 {[%clk 0:00:10]}  gxf4 {[%clk 0:00:16]} 35. c4 {[%clk 0:00:10]}  Nb4 {[%clk 0:00:16]} 36. Rxa5 {[%clk 0:00:10]}  Kg7 {[%clk 0:00:15]} 37. Rg5+ {[%clk 0:00:08]}  Rg6 {[%clk 0:00:15]} 38. Re5 {[%clk 0:00:06]}  f3 {[%clk 0:00:16]} 39. g3 {[%clk 0:00:07]}  Na6 {[%clk 0:00:16]} 40. c5 {[%clk 0:00:05]}  Nc7 {[%clk 0:00:16]} 41. b4 {[%clk 0:00:05]}  Nd5 {[%clk 0:00:16]} 42. b5 {[%clk 0:00:06]}  Kf6 {[%clk 0:00:16]} 43. Re4 {[%clk 0:00:04]}  Nc3 {[%clk 0:00:15]} 44. Rd6+ {[%clk 0:00:03]}  Kg7 {[%clk 0:00:15]} 45. Rb4 {[%clk 0:00:01]}  Ne2+ {[%clk 0:00:13]} 46. Kf1 {[%clk 0:00:01]}  Rxd6 {[%clk 0:00:14]} 47. cxd6 {[%clk 0:00:01]}  Rd7 {[%clk 0:00:14]} 48. bxc6 {[%clk 0:00:02]}  bxc6 {[%clk 0:00:15]} 0-1


[Site "https://www.chess.com"]

[Event "Titled Tuesday Blitz March 08 Late 2022"]
[White "Kosakowski, Jakub"]
[Black "Cori T., Deysi"]
[WhiteFideId "1185080"]
[BlackFideId "3801934"]
[WhiteElo "2476"]
[BlackElo "2341"]
[Result "1-0"]
[Round "09"]
[TimeControl "180+1"]
[Date "2022.03.08"]
[WhiteClock "0:01:45"]
[BlackClock "0:02:13"]

1. d4 {[%clk 0:02:52]}  f5 {[%clk 0:02:59]} 2. Nc3 {[%clk 0:02:51]}  Nf6 {[%clk 0:02:57]} 3. Bg5 {[%clk 0:02:49]}  g6 {[%clk 0:02:56]} 4. h4 {[%clk 0:02:39]}  d6 {[%clk 0:02:54]} 5. h5 {[%clk 0:02:34]}  Nxh5 {[%clk 0:02:53]} 6. Rxh5 {[%clk 0:02:34]}  gxh5 {[%clk 0:02:54]} 7. e4 {[%clk 0:02:34]}  fxe4 {[%clk 0:02:50]} 8. Qxh5+ {[%clk 0:02:33]}  Kd7 {[%clk 0:02:50]} 9. Bc4 {[%clk 0:02:28]}  c6 {[%clk 0:02:47]} 10. d5 {[%clk 0:02:19]}  Bg7 {[%clk 0:02:39]} 11. Nxe4 {[%clk 0:02:10]}  cxd5 {[%clk 0:02:36]} 12. Bxd5 {[%clk 0:02:02]}  Qa5+ {[%clk 0:02:36]} 13. Bd2 {[%clk 0:02:02]}  Qb6 {[%clk 0:02:28]} 14. Qg4+ {[%clk 0:02:00]}  Kc7 {[%clk 0:02:25]} 15. Qxg7 {[%clk 0:02:00]}  Re8 {[%clk 0:02:22]} 16. Nf6 {[%clk 0:01:56]}  Rd8 {[%clk 0:02:15]} 17. Qxe7+ {[%clk 0:01:55]}  Bd7 {[%clk 0:02:14]} 18. O-O-O {[%clk 0:01:52]}  Nc6 {[%clk 0:02:15]} 19. Bxc6 {[%clk 0:01:48]}  bxc6 {[%clk 0:02:15]} 20. Bf4 {[%clk 0:01:47]}  Rab8 {[%clk 0:02:13]} 21. Bxd6+ {[%clk 0:01:46]}  Kb7 {[%clk 0:02:13]} 22. Bxb8 {[%clk 0:01:45]} 1-0


[Site "https://www.chess.com"]

[Event "Titled Tuesday Blitz March 08 Late 2022"]
[White "Kostiukov, Alexandr"]
[Black "Dias, Joao Batista"]
[WhiteFideId "14108100"]
[BlackFideId "2108240"]
[WhiteElo "2202"]
[BlackElo "1898"]
[Result "1-0"]
[Round "09"]
[TimeControl "180+1"]
[Date "2022.03.09"]
[WhiteClock "0:00:08"]
[BlackClock "0:00:30"]

1. e4 {[%clk 0:02:54]}  e6 {[%clk 0:02:51]} 2. g3 {[%clk 0:02:54]}  d5 {[%clk 0:02:38]} 3. d3 {[%clk 0:02:53]}  dxe4 {[%clk 0:02:37]} 4. dxe4 {[%clk 0:02:54]}  Qxd1+ {[%clk 0:02:37]} 5. Kxd1 {[%clk 0:02:55]}  Bc5 {[%clk 0:02:37]} 6. f3 {[%clk 0:02:56]}  Nc6 {[%clk 0:02:37]} 7. Bg2 {[%clk 0:02:56]}  Nf6 {[%clk 0:02:29]} 8. Nd2 {[%clk 0:02:56]}  O-O {[%clk 0:02:29]} 9. c3 {[%clk 0:02:56]}  Rb8 {[%clk 0:02:26]} 10. Kc2 {[%clk 0:02:55]}  b5 {[%clk 0:02:26]} 11. a3 {[%clk 0:02:46]}  Na5 {[%clk 0:02:25]} 12. b4 {[%clk 0:02:21]}  Bxg1 {[%clk 0:02:24]} 13. Rxg1 {[%clk 0:02:19]}  Nb7 {[%clk 0:02:21]} 14. a4 {[%clk 0:02:16]}  a6 {[%clk 0:02:20]} 15. axb5 {[%clk 0:02:16]}  axb5 {[%clk 0:02:20]} 16. Nb3 {[%clk 0:02:13]}  Nd7 {[%clk 0:02:17]} 17. Be3 {[%clk 0:02:10]}  Nd6 {[%clk 0:02:11]} 18. Ra7 {[%clk 0:01:54]}  Nc4 {[%clk 0:02:10]} 19. Bc1 {[%clk 0:01:52]}  Rb7 {[%clk 0:02:08]} 20. Ra8 {[%clk 0:01:44]}  Ndb6 {[%clk 0:02:06]} 21. Ra1 {[%clk 0:01:42]}  Bd7 {[%clk 0:02:05]} 22. Nc5 {[%clk 0:01:42]}  Bc6 {[%clk 0:02:03]} 23. Nxb7 {[%clk 0:01:41]}  Bxb7 {[%clk 0:02:03]} 24. Ra7 {[%clk 0:01:37]}  Rb8 {[%clk 0:02:02]} 25. Rd1 {[%clk 0:01:35]}  h6 {[%clk 0:02:00]} 26. Bf1 {[%clk 0:00:28]}  Kh7 {[%clk 0:01:42]} 27. Rd3 {[%clk 0:00:25]}  Ne5 {[%clk 0:01:36]} 28. Re3 {[%clk 0:00:22]}  Nc6 {[%clk 0:01:35]} 29. Ra1 {[%clk 0:00:21]}  Nc4 {[%clk 0:01:31]} 30. Bxc4 {[%clk 0:00:19]}  bxc4 {[%clk 0:01:31]} 31. f4 {[%clk 0:00:19]}  g6 {[%clk 0:01:24]} 32. Bd2 {[%clk 0:00:18]}  Ne7 {[%clk 0:01:23]} 33. h4 {[%clk 0:00:17]}  Rd8 {[%clk 0:01:17]} 34. Ra7 {[%clk 0:00:15]}  Rb8 {[%clk 0:01:16]} 35. g4 {[%clk 0:00:15]}  Kg7 {[%clk 0:01:14]} 36. f5 {[%clk 0:00:16]}  gxf5 {[%clk 0:01:13]} 37. exf5 {[%clk 0:00:16]}  Kf6 {[%clk 0:01:13]} 38. fxe6 {[%clk 0:00:16]}  fxe6 {[%clk 0:01:13]} 39. Re2 {[%clk 0:00:15]}  e5 {[%clk 0:01:06]} 40. Bxh6 {[%clk 0:00:13]}  Nd5 {[%clk 0:01:03]} 41. Bg5+ {[%clk 0:00:13]}  Ke6 {[%clk 0:01:02]} 42. Rf2 {[%clk 0:00:12]}  Bc6 {[%clk 0:01:00]} 43. Ra5 {[%clk 0:00:12]}  Re8 {[%clk 0:00:53]} 44. Rc5 {[%clk 0:00:11]}  Kd7 {[%clk 0:00:51]} 45. b5 {[%clk 0:00:11]}  Bb7 {[%clk 0:00:50]} 46. Rf7+ {[%clk 0:00:10]}  Kd6 {[%clk 0:00:46]} 47. Rxc4 {[%clk 0:00:10]}  e4 {[%clk 0:00:44]} 48. Kd1 {[%clk 0:00:08]}  e3 {[%clk 0:00:44]} 49. Ke1 {[%clk 0:00:08]}  e2 {[%clk 0:00:44]} 50. Rd4 {[%clk 0:00:08]}  Kc5 {[%clk 0:00:43]} 51. Rf5 {[%clk 0:00:08]}  c6 {[%clk 0:00:41]} 52. bxc6 {[%clk 0:00:07]}  Bxc6 {[%clk 0:00:42]} 53. Rd2 {[%clk 0:00:07]}  Re4 {[%clk 0:00:37]} 54. Be7+ {[%clk 0:00:04]}  Kc4 {[%clk 0:00:36]} 55. Bb4 {[%clk 0:00:04]}  Rxg4 {[%clk 0:00:35]} 56. Rd4+ {[%clk 0:00:05]}  Kb3 {[%clk 0:00:34]} 57. Rxg4 {[%clk 0:00:05]}  Ne3 {[%clk 0:00:32]} 58. Rgf4 {[%clk 0:00:03]}  Nxf5 {[%clk 0:00:32]} 59. Rxf5 {[%clk 0:00:03]}  Kc2 {[%clk 0:00:31]} 60. Kxe2 {[%clk 0:00:03]}  Kb3 {[%clk 0:00:30]} 61. Ke3 {[%clk 0:00:04]}  Bd7 {[%clk 0:00:29]} 62. Rg5 {[%clk 0:00:05]}  Be6 {[%clk 0:00:28]} 63. h5 {[%clk 0:00:06]}  Kc4 {[%clk 0:00:28]} 64. h6 {[%clk 0:00:06]}  Bg8 {[%clk 0:00:28]} 65. Rxg8 {[%clk 0:00:07]}  Kd5 {[%clk 0:00:28]} 66. h7 {[%clk 0:00:08]}  Ke6 {[%clk 0:00:29]} 67. h8=Q {[%clk 0:00:09]}  Kf7 {[%clk 0:00:30]} 68. Qg7+ {[%clk 0:00:08]} 1-0


[Site "https://www.chess.com"]

[Event "Titled Tuesday Blitz March 08 Late 2022"]
[White "Kujawski, Adam"]
[Black "Przybylski, Wojciech"]
[WhiteFideId "1100920"]
[BlackFideId "1117599"]
[WhiteElo "2053"]
[BlackElo "2133"]
[Result "1-0"]
[Round "09"]
[TimeControl "180+1"]
[Date "2022.03.09"]
[WhiteClock "0:00:03"]
[BlackClock "0:00:06"]

1. e4 {[%clk 0:02:57]}  e5 {[%clk 0:02:56]} 2. Nf3 {[%clk 0:02:56]}  Nc6 {[%clk 0:02:57]} 3. Bb5 {[%clk 0:02:56]}  Nf6 {[%clk 0:02:57]} 4. O-O {[%clk 0:02:52]}  Nxe4 {[%clk 0:02:57]} 5. d4 {[%clk 0:02:52]}  Nd6 {[%clk 0:02:57]} 6. Bg5 {[%clk 0:02:48]}  Be7 {[%clk 0:02:57]} 7. Bxc6 {[%clk 0:02:38]}  Bxg5 {[%clk 0:02:41]} 8. Bd5 {[%clk 0:02:33]}  e4 {[%clk 0:02:30]} 9. Nxg5 {[%clk 0:01:35]}  Qxg5 {[%clk 0:02:25]} 10. Nc3 {[%clk 0:01:35]}  f5 {[%clk 0:02:13]} 11. f3 {[%clk 0:01:22]}  c6 {[%clk 0:02:00]} 12. Bb3 {[%clk 0:01:21]}  Rf8 {[%clk 0:01:33]} 13. Qe2 {[%clk 0:01:14]}  Qe7 {[%clk 0:01:11]} 14. Rae1 {[%clk 0:00:49]}  Rf6 {[%clk 0:00:58]} 15. fxe4 {[%clk 0:00:46]}  Nxe4 {[%clk 0:00:56]} 16. Nxe4 {[%clk 0:00:43]}  fxe4 {[%clk 0:00:54]} 17. Rxf6 {[%clk 0:00:33]}  gxf6 {[%clk 0:00:49]} 18. Qh5+ {[%clk 0:00:29]}  Kd8 {[%clk 0:00:49]} 19. d5 {[%clk 0:00:19]}  d6 {[%clk 0:00:43]} 20. dxc6 {[%clk 0:00:10]}  bxc6 {[%clk 0:00:37]} 21. Qa5+ {[%clk 0:00:07]}  Kd7 {[%clk 0:00:36]} 22. Qb4 {[%clk 0:00:05]}  d5 {[%clk 0:00:33]} 23. Qd4 {[%clk 0:00:05]}  Qe5 {[%clk 0:00:27]} 24. Qc5 {[%clk 0:00:05]}  Bb7 {[%clk 0:00:24]} 25. Rd1 {[%clk 0:00:04]}  Qd6 {[%clk 0:00:19]} 26. Qe3 {[%clk 0:00:04]}  Re8 {[%clk 0:00:17]} 27. c4 {[%clk 0:00:04]}  Re5 {[%clk 0:00:16]} 28. cxd5 {[%clk 0:00:04]}  cxd5 {[%clk 0:00:15]} 29. Qxa7 {[%clk 0:00:04]}  Qc6 {[%clk 0:00:08]} 30. Ba4 {[%clk 0:00:04]}  Ke6 {[%clk 0:00:07]} 31. Bxc6 {[%clk 0:00:04]}  Bxc6 {[%clk 0:00:08]} 32. Qc5 {[%clk 0:00:04]}  Bd7 {[%clk 0:00:07]} 33. Qb6+ {[%clk 0:00:04]}  Kf7 {[%clk 0:00:06]} 34. Rf1 {[%clk 0:00:04]}  e3 {[%clk 0:00:06]} 35. Qxf6+ {[%clk 0:00:03]}  Ke8 {[%clk 0:00:06]} 36. Qf8# {[%clk 0:00:03]} 1-0


[Site "https://www.chess.com"]

[Event "Titled Tuesday Blitz March 08 Late 2022"]
[White "Li, Ben"]
[Black "Fiorito, Fabian"]
[WhiteFideId "2089980"]
[BlackFideId "100200"]
[WhiteElo "2267"]
[BlackElo "2395"]
[Result "1-0"]
[Round "09"]
[TimeControl "180+1"]
[Date "2022.03.08"]
[WhiteClock "0:00:19"]
[BlackClock "0:00:15"]

1. d4 {[%clk 0:03:00]}  d5 {[%clk 0:02:59]} 2. Nf3 {[%clk 0:02:56]}  Nf6 {[%clk 0:02:59]} 3. c4 {[%clk 0:02:56]}  c6 {[%clk 0:03:00]} 4. Nc3 {[%clk 0:02:53]}  e6 {[%clk 0:03:00]} 5. e3 {[%clk 0:02:53]}  Nbd7 {[%clk 0:03:00]} 6. Bd3 {[%clk 0:02:54]}  dxc4 {[%clk 0:03:00]} 7. Bxc4 {[%clk 0:02:54]}  b5 {[%clk 0:03:01]} 8. Bd3 {[%clk 0:02:55]}  b4 {[%clk 0:03:02]} 9. Ne4 {[%clk 0:02:55]}  Nxe4 {[%clk 0:03:02]} 10. Bxe4 {[%clk 0:02:56]}  Bb7 {[%clk 0:03:03]} 11. O-O {[%clk 0:02:55]}  Be7 {[%clk 0:03:04]} 12. a3 {[%clk 0:02:43]}  a5 {[%clk 0:02:58]} 13. b3 {[%clk 0:02:42]}  O-O {[%clk 0:02:57]} 14. Qc2 {[%clk 0:02:37]}  Nf6 {[%clk 0:02:57]} 15. Bd3 {[%clk 0:02:36]}  c5 {[%clk 0:02:55]} 16. dxc5 {[%clk 0:02:35]}  Bxf3 {[%clk 0:02:55]} 17. gxf3 {[%clk 0:02:36]}  Rc8 {[%clk 0:02:53]} 18. axb4 {[%clk 0:02:34]}  axb4 {[%clk 0:02:54]} 19. Qe2 {[%clk 0:02:31]}  Rxc5 {[%clk 0:02:44]} 20. f4 {[%clk 0:02:12]}  e5 {[%clk 0:02:34]} 21. fxe5 {[%clk 0:02:02]}  Rxe5 {[%clk 0:02:35]} 22. Bb2 {[%clk 0:02:03]}  Rd5 {[%clk 0:02:25]} 23. Rad1 {[%clk 0:02:01]}  Re8 {[%clk 0:02:11]} 24. Bc4 {[%clk 0:01:49]}  Rg5+ {[%clk 0:02:07]} 25. Kh1 {[%clk 0:01:42]}  Qc7 {[%clk 0:02:03]} 26. Rg1 {[%clk 0:01:36]}  Rh5 {[%clk 0:02:02]} 27. Rg2 {[%clk 0:01:29]}  Rh6 {[%clk 0:01:44]} 28. Rdg1 {[%clk 0:01:27]}  g6 {[%clk 0:01:36]} 29. Qf3 {[%clk 0:01:24]}  Qb6 {[%clk 0:00:57]} 30. e4 {[%clk 0:01:08]}  Rf8 {[%clk 0:00:51]} 31. Qf4 {[%clk 0:00:56]}  Rh5 {[%clk 0:00:49]} 32. e5 {[%clk 0:00:45]}  Nd7 {[%clk 0:00:47]} 33. Qe4 {[%clk 0:00:24]}  Nc5 {[%clk 0:00:16]} 34. Qe2 {[%clk 0:00:24]}  Ne6 {[%clk 0:00:15]} 35. Qxh5 {[%clk 0:00:21]}  Nf4 {[%clk 0:00:16]} 36. Qf3 {[%clk 0:00:19]}  Nxg2 {[%clk 0:00:16]} 37. Rxg2 {[%clk 0:00:19]}  Rd8 {[%clk 0:00:15]} 38. Rg1 {[%clk 0:00:18]}  Rd2 {[%clk 0:00:15]} 39. Qxf7+ {[%clk 0:00:18]}  Kh8 {[%clk 0:00:15]} 40. Qg8# {[%clk 0:00:19]} 1-0


[Site "https://www.chess.com"]

[Event "Titled Tuesday Blitz March 08 Late 2022"]
[White "Lopez Del Alamo, Antonio"]
[Black "Karttunen, Mika"]
[WhiteFideId "2227339"]
[BlackFideId "502081"]
[WhiteElo "2082"]
[BlackElo "2343"]
[Result "0-1"]
[Round "09"]
[TimeControl "180+1"]
[Date "2022.03.09"]
[WhiteClock "0:00:02"]
[BlackClock "0:00:06"]

1. e4 {[%clk 0:01:41]}  c5 {[%clk 0:02:57]} 2. Nf3 {[%clk 0:01:41]}  d6 {[%clk 0:02:57]} 3. d4 {[%clk 0:01:39]}  cxd4 {[%clk 0:02:57]} 4. Nxd4 {[%clk 0:01:39]}  Nf6 {[%clk 0:02:58]} 5. Nc3 {[%clk 0:01:40]}  a6 {[%clk 0:02:58]} 6. Be2 {[%clk 0:01:40]}  e5 {[%clk 0:02:58]} 7. Nb3 {[%clk 0:01:41]}  Be7 {[%clk 0:02:58]} 8. Be3 {[%clk 0:01:40]}  O-O {[%clk 0:02:57]} 9. g4 {[%clk 0:01:40]}  Be6 {[%clk 0:02:56]} 10. g5 {[%clk 0:01:40]}  Nfd7 {[%clk 0:02:56]} 11. Qd2 {[%clk 0:01:40]}  Nb6 {[%clk 0:02:36]} 12. h4 {[%clk 0:01:39]}  Nc4 {[%clk 0:02:35]} 13. Bxc4 {[%clk 0:01:39]}  Bxc4 {[%clk 0:02:35]} 14. O-O-O {[%clk 0:01:39]}  Nc6 {[%clk 0:02:23]} 15. Kb1 {[%clk 0:01:36]}  Rc8 {[%clk 0:02:23]} 16. Nd5 {[%clk 0:01:28]}  Bxd5 {[%clk 0:02:18]} 17. Qxd5 {[%clk 0:01:27]}  b5 {[%clk 0:01:58]} 18. c3 {[%clk 0:01:24]}  b4 {[%clk 0:01:55]} 19. c4 {[%clk 0:01:21]}  a5 {[%clk 0:01:46]} 20. Rdg1 {[%clk 0:01:17]}  a4 {[%clk 0:01:43]} 21. Nc1 {[%clk 0:01:15]}  Nd4 {[%clk 0:01:08]} 22. Bxd4 {[%clk 0:01:14]}  exd4 {[%clk 0:01:08]} 23. Nd3 {[%clk 0:01:14]}  b3 {[%clk 0:01:09]} 24. a3 {[%clk 0:01:13]}  Qc7 {[%clk 0:00:57]} 25. Rc1 {[%clk 0:01:04]}  Kh8 {[%clk 0:00:55]} 26. f4 {[%clk 0:01:01]}  f5 {[%clk 0:00:39]} 27. exf5 {[%clk 0:00:56]}  Qd7 {[%clk 0:00:39]} 28. Rhe1 {[%clk 0:00:52]}  Bd8 {[%clk 0:00:40]} 29. Re6 {[%clk 0:00:50]}  Qf7 {[%clk 0:00:39]} 30. f6 {[%clk 0:00:43]}  gxf6 {[%clk 0:00:38]} 31. Qxd6 {[%clk 0:00:40]}  fxg5 {[%clk 0:00:28]} 32. hxg5 {[%clk 0:00:39]}  Bc7 {[%clk 0:00:21]} 33. Qa6 {[%clk 0:00:35]}  Qf5 {[%clk 0:00:18]} 34. c5 {[%clk 0:00:33]}  Ra8 {[%clk 0:00:17]} 35. Qc4 {[%clk 0:00:31]}  Bxf4 {[%clk 0:00:17]} 36. Rce1 {[%clk 0:00:28]}  Be3 {[%clk 0:00:16]} 37. Ka1 {[%clk 0:00:23]}  Rad8 {[%clk 0:00:16]} 38. c6 {[%clk 0:00:22]}  Qxg5 {[%clk 0:00:14]} 39. c7 {[%clk 0:00:20]}  Rc8 {[%clk 0:00:15]} 40. Rc6 {[%clk 0:00:15]}  Qg7 {[%clk 0:00:14]} 41. Nc5 {[%clk 0:00:14]}  Qg3 {[%clk 0:00:10]} 42. Rb1 {[%clk 0:00:12]}  Qf3 {[%clk 0:00:08]} 43. Ne6 {[%clk 0:00:11]}  Rf7 {[%clk 0:00:09]} 44. Nd8 {[%clk 0:00:10]}  Rg7 {[%clk 0:00:08]} 45. Ne6 {[%clk 0:00:09]}  Re7 {[%clk 0:00:08]} 46. Rd6 {[%clk 0:00:09]}  Qf7 {[%clk 0:00:06]} 47. Rd8+ {[%clk 0:00:08]}  Re8 {[%clk 0:00:07]} 48. Rxe8+ {[%clk 0:00:07]}  Qxe8 {[%clk 0:00:06]} 49. Qd5 {[%clk 0:00:07]}  Qe7 {[%clk 0:00:05]} 50. Qe5+ {[%clk 0:00:07]}  Kg8 {[%clk 0:00:05]} 51. Rf1 {[%clk 0:00:07]}  Rxc7 {[%clk 0:00:05]} 52. Qxc7 {[%clk 0:00:07]}  Qxe6 {[%clk 0:00:05]} 53. Qd8+ {[%clk 0:00:07]}  Kg7 {[%clk 0:00:05]} 54. Qf8+ {[%clk 0:00:06]}  Kg6 {[%clk 0:00:06]} 55. Qf3 {[%clk 0:00:05]}  h5 {[%clk 0:00:05]} 56. Re1 {[%clk 0:00:05]}  Qe5 {[%clk 0:00:05]} 57. Re2 {[%clk 0:00:05]}  h4 {[%clk 0:00:05]} 58. Rg2+ {[%clk 0:00:05]}  Kh6 {[%clk 0:00:06]} 59. Qg4 {[%clk 0:00:04]}  Bg5 {[%clk 0:00:06]} 60. Qc8 {[%clk 0:00:02]}  Qe1+ {[%clk 0:00:06]} 0-1


[Site "https://www.chess.com"]

[Event "Titled Tuesday Blitz March 08 Late 2022"]
[White "Martin Duque, Jesus"]
[Black "Salimova, Nurgyul"]
[WhiteFideId "2208954"]
[BlackFideId "2915138"]
[WhiteElo "2243"]
[BlackElo "2185"]
[Result "1/2-1/2"]
[Round "09"]
[TimeControl "180+1"]
[Date "2022.03.08"]
[WhiteClock "0:00:42"]
[BlackClock "0:00:05"]

1. Nf3 {[%clk 0:02:59]}  Nf6 {[%clk 0:02:57]} 2. b3 {[%clk 0:02:59]}  d5 {[%clk 0:02:53]} 3. Bb2 {[%clk 0:02:59]}  Bf5 {[%clk 0:02:52]} 4. d3 {[%clk 0:02:59]}  e6 {[%clk 0:02:51]} 5. Nbd2 {[%clk 0:03:00]}  h6 {[%clk 0:02:50]} 6. g3 {[%clk 0:03:00]}  c5 {[%clk 0:02:26]} 7. Bg2 {[%clk 0:02:59]}  Nc6 {[%clk 0:02:26]} 8. Ne5 {[%clk 0:02:59]}  Nxe5 {[%clk 0:02:22]} 9. Bxe5 {[%clk 0:03:00]}  Bd6 {[%clk 0:02:23]} 10. Bxd6 {[%clk 0:02:59]}  Qxd6 {[%clk 0:02:23]} 11. e4 {[%clk 0:02:58]}  dxe4 {[%clk 0:02:22]} 12. dxe4 {[%clk 0:02:59]}  Bh7 {[%clk 0:02:12]} 13. Nc4 {[%clk 0:02:52]}  Qxd1+ {[%clk 0:02:09]} 14. Rxd1 {[%clk 0:02:53]}  Ke7 {[%clk 0:01:56]} 15. f3 {[%clk 0:02:50]}  Rhd8 {[%clk 0:01:55]} 16. Ke2 {[%clk 0:02:49]}  g5 {[%clk 0:01:48]} 17. Ke3 {[%clk 0:02:47]}  b6 {[%clk 0:01:27]} 18. a4 {[%clk 0:02:46]}  Nd7 {[%clk 0:01:15]} 19. f4 {[%clk 0:02:42]}  gxf4+ {[%clk 0:01:14]} 20. gxf4 {[%clk 0:02:43]}  Rg8 {[%clk 0:01:13]} 21. Bf3 {[%clk 0:02:44]}  Rad8 {[%clk 0:01:06]} 22. Rhg1 {[%clk 0:02:42]}  Rxg1 {[%clk 0:01:03]} 23. Rxg1 {[%clk 0:02:43]}  Nf6 {[%clk 0:01:00]} 24. c3 {[%clk 0:02:37]}  Nd7 {[%clk 0:00:48]} 25. e5 {[%clk 0:02:35]}  Bg6 {[%clk 0:00:43]} 26. h4 {[%clk 0:02:34]}  h5 {[%clk 0:00:38]} 27. Nd6 {[%clk 0:02:30]}  Nf6 {[%clk 0:00:34]} 28. c4 {[%clk 0:02:14]}  Ne8 {[%clk 0:00:33]} 29. Nb5 {[%clk 0:02:01]}  Rd3+ {[%clk 0:00:31]} 30. Ke2 {[%clk 0:02:00]}  Rxb3 {[%clk 0:00:32]} 31. Nxa7 {[%clk 0:02:00]}  Ng7 {[%clk 0:00:31]} 32. Nc6+ {[%clk 0:02:00]}  Kf8 {[%clk 0:00:31]} 33. Rd1 {[%clk 0:01:59]}  Nf5 {[%clk 0:00:30]} 34. Rd8+ {[%clk 0:01:57]}  Kg7 {[%clk 0:00:31]} 35. Rb8 {[%clk 0:01:46]}  Nxh4 {[%clk 0:00:30]} 36. a5 {[%clk 0:01:36]}  Nxf3 {[%clk 0:00:24]} 37. a6 {[%clk 0:01:35]}  Ra3 {[%clk 0:00:19]} 38. a7 {[%clk 0:01:31]}  Nd4+ {[%clk 0:00:19]} 39. Nxd4 {[%clk 0:01:18]}  Rxa7 {[%clk 0:00:19]} 40. Nb5 {[%clk 0:01:15]}  Ra2+ {[%clk 0:00:16]} 41. Kf3 {[%clk 0:01:15]}  h4 {[%clk 0:00:12]} 42. Nd6 {[%clk 0:01:13]}  h3 {[%clk 0:00:10]} 43. Ne8+ {[%clk 0:01:08]}  Kh6 {[%clk 0:00:09]} 44. Nf6 {[%clk 0:01:08]}  Bh5+ {[%clk 0:00:09]} 45. Kg3 {[%clk 0:01:05]}  Bg6 {[%clk 0:00:07]} 46. Rh8+ {[%clk 0:01:03]}  Kg7 {[%clk 0:00:07]} 47. Rg8+ {[%clk 0:01:03]}  Kh6 {[%clk 0:00:07]} 48. Ng4+ {[%clk 0:00:56]}  Kh7 {[%clk 0:00:06]} 49. Nf6+ {[%clk 0:00:56]}  Kh6 {[%clk 0:00:06]} 50. Ng4+ {[%clk 0:00:42]}  Kh7 {[%clk 0:00:05]} 51. Nf6+ {[%clk 0:00:42]}  Kh6 {[%clk 0:00:05]} 1/2-1/2


[Site "https://www.chess.com"]